Cogmind - Beta 15 @@@ ROGUE MODE // 2025.06.20 @ 13:34:35 Player: Windjigo Result: Destroyed self with Grenade Launcher Performance ------------- Evolutions (0) 0 Regions Visited (1) 200 Robots Destroyed (30) 150 Value Destroyed (473) 473 Prototype IDs (0) 0 Alien Tech Used (0) 0 Bonus (0) 0 TOTAL SCORE: 823 Bonus ------- None Cogmind --------- Core Integrity 0/250 Matter 218/300 Energy 248/250 System Corruption 1% Temperature Cool (32) Movement Rolling (90) Location -10/Materials Parts ------- > --- POWER (1) -------- Ion Engine > --- PROPULSION (2) --- Wheel Compact Wheel > --- UTILITY (2) ------ Medium Storage Unit > --- WEAPON (2) ------- Grenade Launcher Grenade Launcher > --- INVENTORY (10) --- Ion Engine Light Treads Compact Wheel Small Storage Unit Transport Network Coupler Hacking Suite Small Laser Assault Rifle Datajack Mining Laser Peak State ------------ > --- POWER ------------ Ion Engine > --- PROPULSION ------- Wheel Wheel > --- UTILITY ---------- Medium Storage Unit Improved Terrain Scanner > --- WEAPON ----------- Medium Laser Light Assault Rifle > --- INVENTORY -------- Light Ion Engine Light Treads Light Treads Compact Wheel Compact Wheel Small Storage Unit Transport Network Coupler EM Pulse Gun Grenade Launcher Mining Laser [Rating: 10] Favorites ----------- Power Ion Engine Engine Ion Engine Propulsion Wheel Treads Light Treads Wheel Wheel Utility Medium Storage Unit Device Improved Terrain Scanner Storage Medium Storage Unit Protection Light Armor Plating Weapon Medium Laser Energy Gun Medium Laser Ballistic Gun Light Assault Rifle Launcher Grenade Launcher Build | -11 -10 ------- Run | Yrd Mat Slots Evolved . | . . Power . | . . Propulsion . | . . Utility . | . . Weapon . | . . Parts Attached 23 | 12 11 Power 3 | 1 2 Engine 3 | 1 2 Core . | . . Reactor . | . . Propulsion 10 | 7 3 Treads 2 | 2 . Leg . | . . Wheel 8 | 5 3 Hover . | . . Flight . | . . Utility 4 | 2 2 Device 1 | 1 . Storage 2 | 1 1 Processor . | . . Hackware . | . . Protection 1 | . 1 Artifact . | . . Weapon 6 | 2 4 Energy Gun 2 | 1 1 Energy Cannon . | . . Ballistic Gun 2 | 1 1 Ballistic Cannon . | . . Launcher 2 | . 2 Special Weapon . | . . Impact Weapon . | . . Slashing Weapon . | . . Piercing Weapon . | . . Special Melee Weapon . | . . Unidentified Prototypes . | . . Parts Lost 6 | . 6 Power . | . . Propulsion 3 | . 3 Utility 2 | . 2 Weapon 1 | . 1 Highest Loss Streak 2 | . 2 To Critical Strikes . | . . Average Backups 7 | 5 8 Power 1 | . 1 Propulsion 3 | 3 3 Utility 1 | . 1 Weapon 2 | 1 2 Tool/Special . | . . Unused Backups 7 | 1 6 Power 1 | . 1 Propulsion 1 | 1 . Utility 2 | . 2 Weapon 2 | . 2 Tool/Special 1 | . 1 Average Slot Usage (%) 97 | . 97 Engine 14 | . 14 Wheel 27 | . 27 Device 6 | . 6 Storage 14 | . 14 Protection 6 | . 6 Energy Gun 13 | . 13 Ballistic Gun 13 | . 13 Peak Build Rating 10 | 9 10 Average Rating 7 | 5 8 On Entrance 4 | . 9 Naked Turns . | . . Heaviest Build 24 | 14 24 Greatest Support 32 | 26 32 Greatest Overweight (x) 1 | 1 1 Average Overweight (x) . | . . Largest Inventory Capacity 10 | 8 10 Average Capacity 8 | 7 9 Most Carried 10 | 8 10 Average Carried 7 | 5 8 Final Capacity 10 | 8 10 Final Carried 10 | 8 10 Class Distribution -------------------- 73% | Mutant 26% | Scavenger-Mutant Dominant Class ---------------- Mutant | -10/Materials Resources | -11 -10 ----------- Run | Yrd Mat Matter Collected 526 | 277 249 Remotely . | . . Salvage Created 693 | 152 541 Parts 50 | 11 39 Haulers Intercepted 2 | . 2 Recyclers Shooed . | . . Parts Field Recycled . | . . Retrieved Matter . | . . Parts Self-Destructed . | . . Prevented . | . . Kills | -11 -10 ------- Run | Yrd Mat Combat Hostiles Destroyed 16 | . 16 Guns 12 | . 12 AOE 4 | . 4 Classes Destroyed 8 | 2 6 Worker 2 | . 2 Tunneler 5 | 5 . Hauler 2 | . 2 Recycler 1 | 1 . Operator 3 | . 3 Watcher 1 | . 1 Swarmer 8 | . 8 Grunt 8 | . 8 Best Kill Streak 6 | 6 6 Combat Bots Only 5 | . 5 Max Kills in Single Turn 3 | 1 3 Gunslinging . | . . Exploded 2 | . 2 Melee . | . . Uniques/NPCs Destroyed . | . . Combat | -11 -10 -------- Run | Yrd Mat Hostile Shots Fired 100 | . 100 Missed 20 | . 20 Hits 80 | . 80 Projectile 80 | . 80 AOE 1 | . 1 Damage Taken 858 | . 858 Core 250 | . 250 Absorbed by Shields . | . . Core Remaining (%) 100 | 100 . Volleys Fired 83 | 12 71 Largest 2 | 2 2 Hottest 70 | 70 70 Shots Fired 164 | 24 140 Gun 159 | 24 135 Cannon . | . . Launcher 5 | . 5 Special . | . . Kinetic 80 | 12 68 Thermal 79 | 12 67 Explosive 5 | . 5 Electromagnetic . | . . Robot Hit Streak 12 | 5 12 Robot Miss Streak 6 | 2 6 Penetration Max . | . . Secondary Targets 3 | . 3 Max Gunslinging Chain 1 | . 1 Shots Hit Robots 95 | 14 81 Core Hits 46 | 7 39 Critical Kills . | . . Critical Parts Destroyed . | . . Critical Strikes 3 | . 3 Burn 3 | . 3 Melee Attacks . | . . Impact . | . . Slashing . | . . Piercing . | . . Sneak Attacks . | . . Combat Hostiles . | . . Follow-up Attacks . | . . Damage Inflicted 1430 | 176 1254 Guns 1092 | 176 916 Cannons . | . . Explosions 338 | . 338 Melee . | . . Ramming . | . . Kinetic 398 | 38 360 Thermal 694 | 138 556 Explosive 338 | . 338 Electromagnetic . | . . Impact . | . . Slashing . | . . Piercing . | . . Highest Corruption 1 | . 1 Average Corruption 1 | . 1 Corruption Purged . | . . Corruption Blocked . | . . Overload Shots . | . . Overflow Damage . | . . Projectiles . | . . Explosions . | . . Melee . | . . Knockbacks . | . . Impact . | . . Kinetic . | . . Secondary . | . . Self-Inflicted Damage 107 | . 107 Shots 4 | . 4 Rammed . | . . Targets Rammed . | . . Kicked . | . . Crushed . | . . Highest Temperature 220 | 70 220 Average Temperature 47 | 29 50 Received Heat Transfer 138 | . 138 Siege Activations . | . . Martial Activations . | . . Shielding Activations . | . . Robots Disrupted . | . . Combat Hostiles . | . . Robots Corrupted . | . . Combat Hostiles . | . . Parts Fried . | . . Impact Corruptions . | . . Robots Melted . | . . Combat Hostiles . | . . Parts Melted 3 | 1 2 Heat Transferred 2257 | 407 1850 Parts Sabotaged . | . . Parts Stolen . | . . Parts Stripped . | . . Power Chain Reactions . | . . Alert | -11 -10 ------- Run | Yrd Mat Maximum Alert Level . | . . Low Security (%) 100 | 100 100 Level 1 . | . . Level 2 . | . . Level 3 . | . . Level 4 . | . . Level 5 . | . . High Security . | . . Max Security . | . . Peak Influence 119 | 10 119 Initial 3 | . 3 Average 25 | 3 30 Influence Increases 531 | 30 501 Destroy 0b10 Robot/C 320 | . 320 Destroy 0b10 Robot/NC 70 | 30 40 Destroy Leader 76 | . 76 Successful Hack 25 | . 25 Disable Machine 15 | . 15 Destroy Structure 25 | . 25 Influence Decreases 385 | 25 360 Entered New Map 2 | . 2 Time Decay 313 | 25 288 Lost Part 30 | . 30 Purge Threat 40 | . 40 Squads Dispatched 4 | . 4 Investigation 1 | . 1 Extermination . | . . Reinforcement 3 | . 3 Assault . | . . Garrison . | . . Intercept . | . . Searches Triggered . | . . Construction Impeded . | . . Haulers Reinforced . | . . Active Scanning Responses . | . . Cargo Convoy Interrupts . | . . Stealth | -11 -10 --------- Run | Yrd Mat Distress Signals 2 | . 2 Communications Jammed . | . . Distress Signals . | . . Times Spotted 23 | . 23 Peak Tracking Total 5 | . 5 Tactical Retreats . | . . Traps | -11 -10 ------- Run | Yrd Mat Traps Triggered . | . . Indirectly . | . . Trap Hack Attempts . | . . Triggered . | . . Disarmed . | . . Reprogrammed . | . . Reused . | . . Traps Extracted . | . . Installed . | . . Triggered . | . . Machines | -11 -10 ---------- Run | Yrd Mat Machines Disabled 1 | . 1 Max in Single Turn 1 | . 1 Machines Repaired . | . . Machines Dismantled . | . . Machines Sabotaged . | . . Overloaded Fab Kills . | . . Hacking | -11 -10 --------- Run | Yrd Mat Machines Accessed 6 | . 6 Terminals 4 | . 4 Fabricators . | . . Repair Stations 1 | . 1 Recycling Units 1 | . 1 Scanalyzers . | . . Garrison Access . | . . Total Hacks 17 | . 17 Successful 7 | . 7 Failed 10 | . 10 Catastrophic 2 | . 2 Database Lockouts . | . . Manual 10 | . 10 Terminals 13 | . 13 Fabricators . | . . Repair Stations 3 | . 3 Recycling Units 1 | . 1 Scanalyzers . | . . Garrison Access . | . . Terminal Hacks 2 | . 2 Robot Analysis 1 | . 1 Unreport Threat 1 | . 1 Fabricator Hacks . | . . Repair Station Hacks . | . . Recycling Unit Hacks 1 | . 1 Retrieve Components 1 | . 1 Scanalyzer . | . . Garrison Access Hacks . | . . Unauthorized Hacks 4 | . 4 Terminals 4 | . 4 Botnet 4 | . 4 Fabricators . | . . Repair Stations . | . . Recycling Units . | . . Scanalyzers . | . . Garrison Access . | . . Data Cores Recovered . | . . Used . | . . Hacking Detections 5 | . 5 Full Trace Events 1 | . 1 Feedback Events 1 | . 1 Corruption 1 | . 1 Feedback Blocked . | . . Robot Schematics Acquired . | . . Robots Built . | . . Authchips . | . . Time . | . . Total Robot Build Rating . | . . Part Schematics Acquired . | . . Parts Built . | . . Authchips . | . . Time . | . . Total Part Build Rating . | . . Parts Repaired . | . . Time . | . . Parts Recycled . | . . Recycled Matter . | . . Retrieved Matter . | . . Retrieved Components 3 | . 3 Parts Scanalyzed . | . . Part Schematics Acquired . | . . Parts Damaged . | . . Bothacking | -11 -10 ------------ Run | Yrd Mat Used RIF Installer . | . . Robots Hacked . | . . Non-combat . | . . Combat . | . . Robot Hacks Applied . | . . Relay Couplers Released . | . . Fabnet Peak Effective % . | . . Robots Rewired . | . . Allies Hacked . | . . Hacks Repelled . | . . Allies | -11 -10 -------- Run | Yrd Mat Total Allies . | . . Largest Group . | . . Highest-Rated Group . | . . Highest-Rated Ally . | . . Total Orders . | . . Ally Attacks . | . . Total Damage . | . . Kills . | . . Allies Corrupted . | . . Allies Melted . | . . Intel | -11 -10 ------- Run | Yrd Mat Active Infowar (turns) 310 | 4 306 Terrain 310 | 4 306 Robot Analysis Total 1 | . 1 Derelict Logs Recovered . | . . Drone Launches . | . . Drone Recoveries . | . . Exploration | -11 -10 ------------- Run | Yrd Mat Turns Passed 829 | 138 691 Spaces Moved 537 | 95 442 Core 19 | 19 . Treads 2 | 2 . Legs . | . . Wheels 516 | 74 442 Hover . | . . Flight . | . . Fastest Speed 50 | 50 80 Average Speed 88 | 81 90 Slowest Speed 160 | 160 100 Overloaded Moves . | . . Propulsion Burnouts . | . . Robots Hopped . | . . Potential Cave-ins . | . . Cave-ins Triggered . | . . Exploration Rate (%) 39 | 5 73 Regions Visited 1 Branch Regions . Pre-discovered Areas . | . . Known Exits Taken . | . . Unknown Exits Taken 1 | 1 . Scrap Searched . | . . Spaces Dug . | . . Terrain Destroyed 26 | . 26 Melee . | . . Projectile . | . . AOE 26 | . 26 Terrain Rammed . | . . Walls Destroyed . | . . Machines Disabled . | . . Actions | -11 -10 --------- Run | Yrd Mat Total 735 | 132 603 Wait 60 | . 60 Move 536 | 94 442 Hop . | . . Pick Up 20 | 11 9 Fast Attach 7 | 5 2 Attach 5 | 2 3 Detach . | . . Swap 15 | 5 10 Drop 9 | 3 6 Fire 83 | 12 71 Melee . | . . Ram . | . . Kick . | . . Crush . | . . Escape Stasis . | . . Rewire . | . . Trap . | . . Miscellaneous . | . . Route ------- -11/Scrapyard -10/Materials (discovered 1 exit: [*Min]) History --------- Turn | Location | Event 10 | -11/Scrapyard | Discovered new exit (range 15) 139 | -11/Scrapyard | Entered Materials 303 | -10/Materials | Build established: Mutant 459 | -10/Materials | Core integrity fell below 50% 772 | -10/Materials | Discovered new exit (range 6) 827 | -10/Materials | Core integrity fell below 20% 830 | -10/Materials | Destroyed self with Grenade Launcher Last Messages --------------- Terminal linked with 3 systems. Awaiting botnet instructions. 00762_ O-16 Technician suffers critical hit (Burn). 00762_ O-16 Technician destroyed. 00763_ K-01 Serf collects debris. 00766_ Acquired Datajack. 00768_ K-01 Serf collects debris. 00772_ EXIT=FOUND 00812_ Med. Laser destroyed. 00815_ G-34 Mercenary destroyed. 00818_ Acquired Sml. Laser. 00822_ K-01 Serf collects debris. 00823_ G-34 Mercenary destroyed. 00823_ K-01 Serf destroyed. 00825_ Atomic Centrifuge comes online. 00825_ U-05 Engineer builds a Wall. 00826_ G-34 Mercenary destroyed. 00830_ Lgt. Armor Plating destroyed. 00830_ G-34 Mercenary destroyed. Map ----- +----------------------------------------------------+ | """ ==#????# ####" | | """ = ##########+###"" " | | "" ?# #?#"""""""""##########+######## | | ???# ###" =%| [ ##????????? ?# | | ##+###### ##"" = #?#? ?? ? ???# | | # * " ]] #??? ????????# | | == ##################" #?????? ??? ?# | | %= #???????????????? " #??######????# | | == ########???#######" #?! #?????# | | = ##### #######+######? * #????## | | # #?????### | | """" # """ #???????? | | ""R" + """ #???????? | | "" " ##### ##### # """ #???? ??? | | ################+#### ########?????? ? | | # # =% #" ##????????? ??? | | + # #"" #?????????????? | | # """ # """ =!!#!! #?????????????? | | ## # """ # """ =!!#"" < #?????????????? | | ?#### #?""" # """ !!!#!! #????????????? | | ????# #? # #"" #??????? ???? | | ????# #??##### #" #???????????### | | ????# #??????# #### #######????????? | | ##### #??????#### # ####### # #????????? | | # #####???## + #????? ??? | | T # #"T"##### @ # """#????????? | | # ! ### # """#????????? | | # ## % ######### """#????????? | | + """ !## = u T ] #??# #????????? | | #* "T" ## % #??# """#????????? | | # "" ## """ #??# """#????????? | | # [ #### # """ #??# """#????????? | | ! + #??# # """ #??# #????????? | | ############# #?? # #??#######????????? | | ????????????# #?## ###########?????????????? | | ????????????# #??# # #?????????????? | | ????????????# #?# # """ """ #?????????????? | | ########### = ### # """ """ #?????????????? | | = ] # """ """ #?????????????? | | * T + #?????????????? | | !%= # "T" #?????????????? | | ##########+#######= # """ #?????????????? | | ???????????#%[!% =######## #?????????????? | | ???????????#"*""" #??????###########?????????????? | | ???????????#T """ #??????????????????????????????? | | ???????????#" """ #??????????????????????????????? | | ???????????# #??????????????????????????????? | | ???????????# #??????????????????????????????? | | ???????????########??????????????????????????????? | | ?????????????????????????????????????????????????? | +----------------------------------------------------+ Best States ------------- Heat Dissipation 25 Energy Generation 10 Energy Capacity 250 Matter Stores 300 Matter Capacity 300 Sight Range 16 Terrain Scan Range 16 Terrain Scan Density 10 Armor Coverage 150 Evasion (%) 50 Item Schematics ----------------- None Robot Schematics ------------------ None Fabricated ------------ Nothing Repaired ---------- Nothing Alien Tech Used ----------------- None Achievements -------------- None Challenges ------------ None Game ------ Seed RestorationPowerNullifier Manual? 0 Play Time 00:11:20 Cumulative 91.9 hours Start 2025.06.20 @ 13:20:06 End 2025.06.20 @ 13:34:35 Sessions 1 Manual Loads 0 Difficulty Rogue Special Mode None Game No. 69 Rogue 69 Adventurer 0 Explorer 0 Win Type - Total 0 Types 0/0/0/0/0/0/0/0/0/0 Lore% 58 Gallery% 47 Achievement% 43 Wizard Run 0 Options --------- Layout 1 ASCII 0 Keyboard 0 Movement Mouse Keybinds 0 Fullscreen 1 Font 24/Smallcaps Map View 50x35 Zoom Use 0% Tactical HUD 1 Map Filters NONE Filters NONE Steam 1 RUN: 5fcdc0e1-fa1f-4293-8c21-309226f2262a